bitfinex/quotes_SOLUSD_20250922
["timestamp","ask_amount","ask_price","bid_price","bid_amount"]
[1758562116612,0.1,221.24,221.21,0.7]
[1758562119297,0.1,221.24,221.2,35.72]
[1758562119622,0.1,221.24,221.21,0.7]
[1758562120802,0.1,221.24,221.21,7.01976518]
[1758562121004,0.1,221.24,221.22,0.7]
[1758562121820,0.1,221.24,221.22,5.22024789]
[1758562122001,0.1,221.24,221.23,36.4]
[1758562122323,0.1,221.24,221.23,51.79488776]
[1758562122622,0.1,221.24,221.23,65.38030608]
[1758562122822,0.1,221.24,221.23,64.88030608]
[1758562123026,0.1,221.24,221.23,51.29488776]
[1758562123517,0.1,221.24,221.23,55.81507037]
[1758562125822,0.1,221.24,221.23,55.31507037]
[1758562127430,0.1,221.24,221.23,4.52018261]
[1758562127643,0.1,221.24,221.23,40.20018261]
[1758562127845,0.1,221.24,221.23,35.68]
[1758562128035,1.89929375,221.24,221.2,14.29559401]
[1758562128229,0.1,221.24,221.21,36.38]
[1758562128550,0.1,221.24,221.22,0.7]
[1758562128712,0.1,221.24,221.23,36.38]
[1758562129419,0.1,221.24,221.23,40.90018261]
[1758562129636,0.1,221.24,221.23,40.20018261]
[1758562130038,0.1,221.24,221.23,35.68]
[1758562130641,0.8,221.24,221.23,35.68]
[1758562130944,2.59929375,221.24,221.23,35.66]
[1758562131240,2.59929375,221.24,221.21,35.66]
[1758562131443,1.79929375,221.22,221.21,35.66]
[1758562131625,2.49929375,221.22,221.21,35.66]
[1758562131823,2.49929375,221.22,221.14,17.93477721]
[1758562132036,1.79929375,221.19,221.15,36.36]
[1758562132235,1.79929375,221.2,221.15,36.36]
[1758562132430,1.79929375,221.18,221.15,35.66]
[1758562132744,2.49929375,221.18,221.14,4.52199372]
[1758562132947,0.1,221.24,221.15,35.66]
[1758562132948,1.79929375,221.16,221.15,35.66]
[1758562133325,2.49929375,221.16,221.15,35.66]
[1758562133550,2.49929375,221.16,221.1,0.7]
[1758562133754,1.79929375,221.13,221.09,4.52304491]
[1758562134053,2.49929375,221.13,221.09,4.52304491]
[1758562134255,1.79929375,221.13,221.1,35.66]
[1758562134430,2.49929375,221.13,221.1,35.66]
[1758562134632,0.7,221.12,221.1,35.66]
[1758562134951,1.79929375,221.13,221.1,35.66]
[1758562135451,2.49929375,221.13,221.1,40.18282525]
[1758562135626,1.79929375,221.14,221.1,40.18282525]
[1758562135952,1.79929375,221.15,221.11,0.7]
[1758562136248,2.49929375,221.15,221.11,0.7]
[1758562136449,0.7,221.15,221.11,0.7]
[1758562136631,0.1,221.24,221.14,1.79929375]
[1758562136836,1.79929375,221.19,221.14,38.15929375]
[1758562137043,2.49929375,221.19,221.14,38.15929375]
[1758562137553,1.79929375,221.15,221.12,35.66]
[1758562137728,2.51929375,221.14,221.12,35.66]
[1758562137936,1.79929375,221.15,221.12,35.66]
[1758562138261,0.72,221.14,221.12,35.66]
[1758562138557,0.72,221.14,221.11,4.52251101]
[1758562138854,2.51929375,221.14,221.12,35.66]
[1758562139060,1.79929375,221.14,221.11,35.66]
[1758562139557,2.51929375,221.14,221.11,35.66]
[1758562139935,1.79929375,221.16,221.11,35.66]
[1758562140158,0.72,221.15,221.11,35.66]
[1758562140337,1.79929375,221.16,221.11,35.66]
[1758562140539,2.51929375,221.14,221.11,35.66]
[1758562140961,0.72,221.16,221.11,35.66]
[1758562141258,1.79929375,221.14,221.11,35.66]
[1758562141482,2.51929375,221.14,221.11,35.66]
[1758562141834,0.72,221.14,221.11,35.66]
[1758562142054,0.72,221.16,221.11,40.18256885]
[1758562142249,0.72,221.15,221.11,40.18256885]
[1758562142842,0.72,221.15,221.11,40.83256885]
[1758562143060,1.79929375,221.18,221.11,41.9818626]
[1758562143254,1.79929375,221.18,221.13,1.79929375]
[1758562143255,0.72,221.18,221.13,1.79929375]
[1758562143435,0.72,221.18,221.13,2.44929375]
[1758562143635,0.72,221.21,221.15,1.79929375]
[1758562144236,0.72,221.21,221.15,2.44929375]
[1758562145150,2.51929375,221.23,221.16,5.17161331]
[1758562145645,0.72,221.22,221.16,5.17161331]
[1758562146435,2.51929375,221.22,221.16,5.17161331]
[1758562146862,3.13897241,221.24,221.16,0.65]
[1758562147069,1.79929375,221.2,221.15,35.66]
[1758562147231,1.79929375,221.17,221.14,35.66]
[1758562147436,0.72,221.17,221.14,35.66]
[1758562148366,1.79929375,221.18,221.12,40.83242965]
[1758562148663,0.72,221.17,221.12,40.83242965]
[1758562149036,2.51929375,221.17,221.12,40.83242965]
[1758562149740,0.72,221.16,221.12,40.83242965]
[1758562149940,1.79929375,221.17,221.13,0.65]
[1758562150249,2.51929375,221.17,221.13,0.65]
[1758562150645,0.72,221.16,221.1,4.52266738]
[1758562150963,0.72,221.16,221.1,36.29]
[1758562151158,2.51929375,221.15,221.1,36.29]
[1758562151363,0.72,221.15,221.11,4.52263579]
[1758562151658,2.51929375,221.15,221.11,0.65]
[1758562152336,2.51929375,221.15,221.1,40.16283719]
[1758562152534,1.79929375,221.14,221.1,36.29]
[1758562152737,2.51929375,221.15,221.1,40.81280571]
[1758562153138,0.72,221.15,221.11,0.65]
[1758562153459,2.51929375,221.15,221.11,0.65]
[1758562154156,0.72,221.15,221.11,0.65]
[1758562154863,1.79929375,221.16,221.11,0.65]
[1758562155163,0.7,221.15,221.11,0.65]
[1758562155938,0.7,221.15,221.11,5.17263196]
[1758562156143,1.79929375,221.16,221.08,13.90789686]
[1758562156340,1.79929375,221.12,221.07,4.52336254]
[1758562156642,0.7,221.11,221.08,35.64]
[1758562156841,1.79929375,221.12,221.08,35.64]
[1758562157170,2.49929375,221.12,221.08,36.34]
[1758562157363,1.79929375,221.11,221.08,35.64]
[1758562157657,1.79929375,221.11,221.04,5.22405874]
[1758562157658,0.7,221.1,221.04,5.22405874]
[1758562157864,2.49929375,221.1,221.04,0.7]
[1758562158048,1.79929375,221.09,220.97,11.31341622]
[1758562158364,1.79929375,221.09,221.03,0.7]
[1758562158742,1.79929375,221.08,221.03,0.7]
[1758562159043,2.49929375,221.08,221.03,0.7]
[1758562159264,2.49929375,221.07,220.99,13.59559401]
[1758562159467,2.49929375,221.07,220.97,13.59559401]
[1758562159468,1.79929375,221.04,221.0,36.34]
[1758562159638,2.49929375,221.04,221.0,0.7]
[1758562159842,2.49929375,221.04,220.99,35.64]
[1758562160044,2.49929375,221.04,220.99,0.7]
[1758562160354,1.79929375,221.03,221.0,0.7]
[1758562160763,0.7,221.04,221.0,0.7]
[1758562160764,2.49929375,221.04,221.0,0.7]
[1758562161447,1.79929375,221.03,221.0,0.7]
[1758562162050,2.49929375,221.04,221.0,0.7]
[1758562162292,0.7,221.07,220.99,4.52501265]
[1758562162581,26.0,221.1,221.04,1.79929375]
[1758562162740,0.7,221.13,221.05,0.7]
[1758562162741,1.79929375,221.11,221.05,0.7]
[1758562162946,0.7,221.13,221.06,1.79929375]
[1758562163141,2.49929375,221.13,221.07,2.49929375]
[1758562163369,1.79929375,221.13,221.08,0.7]
[1758562163571,1.79929375,221.14,221.09,0.7]
[1758562163763,2.49929375,221.13,221.09,0.7]
[1758562164661,3.51447024,221.13,221.09,0.7]
[1758562165954,2.81447024,221.14,221.09,4.52300667]
[1758562166149,2.81447024,221.14,221.1,0.7]
[1758562166690,4.52501265,221.2,221.09,4.52300667]
[1758562166971,4.52501265,221.2,221.11,3.51447024]
[1758562166972,2.81447024,221.17,221.11,3.51447024]
[1758562167266,2.81447024,221.16,221.11,0.68]
[1758562167661,0.67,221.16,221.11,0.68]
[1758562167869,2.81447024,221.16,221.12,5.20238911]
[1758562168871,0.67,221.18,221.13,0.68]
[1758562169076,2.81447024,221.17,221.13,0.68]
[1758562169652,3.48447024,221.17,221.13,0.68]
[1758562169871,2.81447024,221.17,221.13,5.20219897]
[1758562170977,3.48447024,221.17,221.13,5.20219897]
[1758562171353,3.48447024,221.17,221.13,0.68]
[1758562171866,3.48447024,221.17,221.13,5.20222449]
[1758562172268,2.81447024,221.16,221.13,4.52222449]
[1758562173372,2.81447024,221.16,221.12,4.52243125]
[1758562173575,2.81447024,221.16,221.12,5.20243125]
[1758562174456,3.48447024,221.17,221.12,5.20243125]
[1758562175375,2.81447024,221.18,221.13,0.68]
[1758562175675,2.81447024,221.18,221.14,0.68]
[1758562175876,3.71054887,221.21,221.15,0.68]
[1758562176179,3.48447024,221.21,221.15,0.68]
[1758562176482,3.37903087,221.2,221.15,0.68]
[1758562176954,3.37903087,221.2,221.16,4.52161331]
[1758562177150,3.37903087,221.2,221.17,0.68]
[1758562178782,2.81447024,221.21,221.17,5.201268]
[1758562179159,3.48447024,221.21,221.17,5.201268]
[1758562179669,3.48447024,221.21,221.17,4.521268]
[1758562179875,2.81447024,221.19,221.15,0.68]
[1758562180890,2.81447024,221.19,221.15,5.20180939]
[1758562182088,3.48447024,221.19,221.15,5.20180939]
[1758562182260,2.81447024,221.18,221.15,5.20180939]
[1758562183165,0.67,221.19,221.15,5.20180939]
[1758562183562,2.81447024,221.2,221.15,4.52180939]
[1758562183771,2.81447024,221.17,221.11,13.59559401]
[1758562183974,0.67,221.17,221.11,2.81447024]
[1758562184179,0.67,221.16,221.11,2.81447024]
[1758562184488,0.67,221.16,221.11,3.49447024]
[1758562185061,0.67,221.16,221.09,60.34402729]
[1758562185062,0.67,221.15,221.09,20.7938824]
[1758562185260,0.67,221.14,221.09,13.45655284]
[1758562185457,26.0,221.2,221.05,3.49447024]
[1758562185458,2.81447024,221.11,221.05,3.49447024]
[1758562185677,0.67,221.1,221.05,8.01814336]
[1758562186884,3.48447024,221.09,221.03,4.52407357]
[1758562187082,0.67,221.08,221.02,4.52444398]
[1758562187381,3.48447024,221.08,221.02,8.01891422]
[1758562190165,3.48447024,221.08,221.03,5.20423262]
[1758562190564,0.67,221.08,221.04,0.68]
[1758562190774,3.48447024,221.1,221.04,3.49447024]
[1758562192284,2.81447024,221.1,221.04,3.49447024]
[1758562192496,0.67,221.09,221.04,3.49447024]
[1758562193293,0.67,221.09,221.04,8.01844146]
[1758562193675,0.67,221.09,221.04,5.20397122]
[1758562195188,0.67,221.09,221.04,4.52397122]
[1758562195500,0.67,221.09,221.05,0.68]
[1758562196273,0.67,221.14,221.08,2.81447024]
[1758562196472,0.67,221.14,221.09,3.49447024]
[1758562197369,0.67,221.14,221.09,8.01744934]
[1758562198494,0.68,221.16,221.1,3.46447024]
[1758562198990,4.05686649,221.16,221.1,3.46447024]
[1758562199701,6.87133673,221.16,221.1,5.17272875]
[1758562199892,3.49447024,221.15,221.08,4.52318992]
[1758562200080,3.49447024,221.15,221.09,0.65]
[1758562200392,2.81447024,221.14,221.06,5.1735871]
[1758562200593,3.49447024,221.14,221.07,3.46447024]
[1758562200782,3.49447024,221.14,221.08,0.65]
[1758562200990,0.68,221.14,221.08,3.46447024]
[1758562201191,0.68,221.14,221.08,0.65]
[1758562201399,3.49447024,221.14,221.08,0.65]
[1758562201783,3.49447024,221.14,221.08,5.17317835]
[1758562201983,0.68,221.14,221.08,7.98764859]
[1758562202204,134.2,221.13,221.08,7.98764859]
[1758562202394,134.2,221.13,221.09,0.65]
[1758562202699,134.2,221.13,221.12,2.81447024]
[1758562202884,134.2,221.13,221.12,3.46447024]
[1758562203906,134.2,221.13,221.12,7.98690149]
[1758562204289,15.929485,221.24,221.13,13.59559401]
[1758562204290,134.2,221.19,221.13,13.59559401]
[1758562204492,0.1,221.24,221.18,2.81447024]
[1758562204724,0.1,221.24,221.21,2.81447024]
[1758562204897,0.1,221.24,221.21,0.65]
[1758562205709,0.1,221.24,221.22,0.65]
[1758562205905,0.1,221.24,221.21,4.52046285]
[1758562206106,0.1,221.24,221.21,0.65]
[1758562206296,0.1,221.24,221.19,0.65]
[1758562206491,3.49447024,221.23,221.16,36.21]
[1758562206793,0.68,221.23,221.17,3.46447024]
[1758562207181,3.49447024,221.23,221.17,3.46447024]
[1758562207482,3.49447024,221.23,221.17,0.65]
[1758562207688,2.81447024,221.19,221.12,13.59559401]
[1758562207886,0.68,221.18,221.12,21.58238133]
[1758562208079,3.49447024,221.17,221.12,0.65]
[1758562208383,3.49447024,221.23,221.16,2.81447024]
[1758562208580,2.81447024,221.19,221.12,13.33253503]
[1758562208784,3.49447024,221.18,221.12,0.65]
[1758562209007,0.68,221.18,221.12,3.46447024]
[1758562209317,26.68,221.22,221.17,2.81447024]
[1758562209488,0.1,221.24,221.18,3.46447024]
[1758562209683,0.1,221.24,221.21,2.81447024]
[1758562209988,3.47618474,221.24,221.21,2.81447024]
[1758562210202,0.1,221.24,221.23,2.81447024]
[1758562210410,0.1,221.24,221.23,3.46447024]
[1758562210794,0.1,221.24,221.23,17.06006425]
[1758562211689,0.68,221.35,221.23,17.06006425]
[1758562211901,0.68,221.37,221.31,2.81447024]
[1758562212410,4.05205667,221.37,221.31,2.81447024]
[1758562212903,0.68,221.36,221.31,2.81447024]
[1758562213105,0.68,221.35,221.31,2.81447024]
[1758562213303,0.68,221.34,221.29,3.46447024]
[1758562213809,3.49447024,221.37,221.3,3.46447024]
[1758562214523,0.68,221.37,221.31,3.48447024]
[1758562214688,3.36413215,221.38,221.32,3.48447024]
[1758562214883,0.67,221.37,221.29,0.67]
[1758562215085,0.67,221.37,221.21,39.54478405]
[1758562215086,0.67,221.37,221.31,2.81447024]
[1758562215306,0.67,221.37,221.32,3.48447024]
[1758562215498,28.81447024,221.39,221.32,2.81447024]
[1758562215699,29.48447024,221.39,221.33,0.67]
[1758562216290,29.48447024,221.39,221.32,2.81447024]
[1758562216513,29.48447024,221.39,221.32,7.33275854]
[1758562216717,26.67,221.39,221.32,8.00275854]
[1758562216900,3.48447024,221.39,221.32,8.00275854]
[1758562217100,3.48447024,221.39,221.32,3.48447024]
[1758562217508,0.67,221.38,221.32,3.48447024]
[1758562217694,0.67,221.38,221.32,7.33281002]
[1758562217895,0.67,221.38,221.32,8.00281002]
[1758562218297,0.67,221.38,221.32,3.48447024]
[1758562218714,3.48447024,221.38,221.32,3.48447024]
[1758562220125,0.67,221.38,221.32,3.48447024]
[1758562220509,0.67,221.38,221.33,2.81447024]
[1758562220811,0.67,221.38,221.32,3.48447024]
[1758562221021,0.1,221.4,221.33,2.81447024]
[1758562221319,0.1,221.4,221.36,2.81447024]
[1758562221718,0.1,221.4,221.37,0.67]
[1758562221919,0.1,221.4,221.38,0.67]
[1758562222624,0.1,221.4,221.39,0.67]
[1758562223118,0.1,221.4,221.39,3.48447024]
[1758562223312,0.1,221.4,221.39,17.08006425]
[1758562223615,0.67,221.52,221.4,13.59559401]
[1758562223820,0.67,221.52,221.34,35.5]
[1758562223821,2.81447024,221.47,221.35,0.4517732]
[1758562224003,3.87855485,221.53,221.34,0.67]
[1758562224004,2.81447024,221.41,221.34,0.67]
[1758562224210,2.81447024,221.39,221.34,0.67]
[1758562224428,0.67,221.41,221.38,4.51737288]
[1758562224630,2.81447024,221.4,221.38,4.51737288]
[1758562224862,2.81447024,221.4,221.35,0.67]
[1758562225015,3.48447024,221.4,221.35,0.67]
[1758562225329,49.71926899,221.47,221.3,0.67]
[1758562225330,2.81447024,221.36,221.3,0.67]
[1758562225495,2.81447024,221.34,221.3,0.67]
[1758562225697,2.81447024,221.31,221.22,4.52038228]
[1758562225916,2.81447024,221.31,221.21,31.16]
[1758562225917,2.81447024,221.26,221.2,0.67]
[1758562226126,2.81447024,221.24,221.2,0.67]
[1758562226511,2.81447024,221.24,221.21,0.67]
[1758562226816,2.81447024,221.24,221.19,4.52099828]
[1758562226817,1.79939785,221.25,221.19,4.52099828]
[1758562227022,1.79939785,221.25,221.21,0.67]
[1758562227243,1.79939785,221.23,221.19,5.18099828]
[1758562227821,1.79939785,221.23,221.16,36.18]
[1758562227995,1.79939785,221.23,221.17,14.25559401]
[1758562228198,1.79939785,221.23,221.18,0.66]
[1758562228414,1.79939785,221.24,221.19,0.66]
[1758562228601,4.68605589,221.24,221.2,0.66]
[1758562228801,0.71,221.27,221.2,0.66]
[1758562229025,4.68605589,221.24,221.2,0.66]
[1758562230118,4.68605589,221.25,221.2,5.18078074]
[1758562230444,5.39605589,221.25,221.2,5.18078074]
[1758562230722,2.81447024,221.35,221.21,0.66]
[1758562230723,28.81447024,221.35,221.21,0.66]
[1758562231022,4.68605589,221.28,221.21,0.66]
[1758562231423,5.39605589,221.28,221.21,0.66]
[1758562231601,0.71,221.28,221.21,0.66]
[1758562231806,4.68605589,221.26,221.21,0.66]
[1758562232007,5.39605589,221.26,221.2,4.52078074]
[1758562232214,5.39605589,221.26,221.19,41.30095203]
[1758562232615,4.68605589,221.26,221.2,0.66]
[1758562232822,4.68605589,221.26,221.2,14.25559401]
[1758562233317,0.71,221.3,221.21,0.66]
[1758562233520,4.68605589,221.28,221.21,5.34605589]
[1758562234025,4.68605589,221.28,221.22,5.18019653]
[1758562234401,5.39605589,221.29,221.22,9.86625242]
[1758562235701,4.68605589,221.3,221.23,5.34605589]
[1758562235901,4.68605589,221.27,221.21,13.59559401]
[1758562236098,4.68605589,221.26,221.22,36.06]
[1758562236321,5.39605589,221.26,221.22,36.06]
[1758562236531,4.68605589,221.27,221.22,36.72]
[1758562237120,4.68605589,221.27,221.22,0.66]
[1758562237121,5.39605589,221.27,221.22,0.66]
[1758562237426,4.68605589,221.28,221.23,0.66]
[1758562237628,5.39605589,221.28,221.23,0.66]
[1758562238018,0.71,221.27,221.19,0.66]
[1758562238205,4.68605589,221.25,221.19,4.68605589]
[1758562238411,5.39605589,221.25,221.19,4.68605589]
[1758562238713,4.68605589,221.24,221.18,50.29559401]
[1758562238912,4.68605589,221.23,221.17,4.68605589]
[1758562239111,5.39605589,221.23,221.17,40.72605589]
[1758562239320,5.39605589,221.23,221.17,36.04]
[1758562239511,0.71,221.23,221.18,4.68605589]
[1758562239909,0.71,221.23,221.16,13.3109658]
[1758562240109,0.71,221.27,221.22,4.68605589]
[1758562240317,5.39605589,221.26,221.17,14.25559401]
[1758562240525,0.71,221.29,221.23,4.68605589]
[1758562240727,0.71,221.31,221.25,4.68605589]
[1758562240908,5.39605589,221.31,221.24,0.66]
[1758562241230,4.68605589,221.25,221.15,13.59559401]
[1758562241432,4.68605589,221.19,221.14,50.56846662]
[1758562242004,4.68605589,221.17,221.14,13.76846662]
[1758562242204,4.68605589,221.18,221.13,36.14]
[1758562242420,0.71,221.17,221.13,36.14]
[1758562242712,0.71,221.16,221.12,36.14]
[1758562243025,5.39605589,221.18,221.12,36.8]
[1758562243631,5.39605589,221.18,221.12,36.14]
[1758562243928,0.71,221.22,221.15,4.68605589]
[1758562244129,5.39605589,221.22,221.15,5.34605589]
[1758562244435,5.39605589,221.22,221.15,0.66]
[1758562244927,5.39605589,221.23,221.16,4.68605589]
[1758562245342,5.39605589,221.23,221.16,9.20764791]
[1758562245820,4.68605589,221.19,221.13,36.14]
[1758562246129,4.68605589,221.15,221.09,14.25559401]
[1758562246334,5.39605589,221.15,221.1,36.12]
[1758562246515,0.71,221.15,221.1,36.12]
[1758562247122,0.71,221.15,221.1,36.78]
[1758562247319,0.71,221.15,221.1,0.66]
[1758562248223,0.71,221.14,221.08,4.68605589]
[1758562248419,5.39605589,221.14,221.07,0.66]
[1758562248607,4.68605589,221.13,221.06,40.78605589]
[1758562248810,5.39605589,221.13,221.06,40.78605589]
[1758562249244,4.68605589,221.13,221.05,0.66]
[1758562249538,4.68605589,221.11,221.05,13.35833702]
[1758562249750,0.71,221.1,221.04,36.08]
[1758562250235,0.71,221.1,221.04,41.42605589]
[1758562250437,0.71,221.13,221.06,4.68605589]
[1758562250933,0.71,221.13,221.05,0.66]
[1758562251143,4.68605589,221.12,221.05,4.68605589]
[1758562251313,0.71,221.16,221.11,9.20869168]
[1758562251512,4.68605589,221.18,221.11,9.86869168]
[1758562251714,0.71,221.19,221.13,4.68605589]
[1758562251916,4.68605589,221.23,221.13,4.68605589]
[1758562252132,0.71,221.21,221.13,4.68605589]
[1758562252339,0.71,221.21,221.12,0.66]
[1758562252544,26.0,221.2,221.13,4.68605589]
[1758562253217,26.0,221.2,221.13,5.34605589]
[1758562253422,26.0,221.2,221.14,4.52202224]
[1758562253626,0.71,221.21,221.15,4.68605589]
[1758562253627,26.71,221.21,221.15,4.68605589]
[1758562253840,26.71,221.21,221.14,4.52202224]
[1758562254947,26.0,221.21,221.12,4.52242784]
[1758562255246,4.68605589,221.22,221.0,13.6]
[1758562255247,4.68605589,221.18,221.09,45.3091008]
[1758562255447,0.71,221.17,221.07,0.66]
[1758562255656,26.0,221.14,221.05,0.66]
[1758562255944,26.71,221.14,221.05,5.34605589]
[1758562256531,26.0,221.18,221.07,4.68605589]
[1758562256848,0.71,221.13,221.07,4.68605589]
[1758562257279,0.7,221.12,221.05,5.34605589]
[1758562257630,26.0,221.14,221.07,4.68605589]
[1758562257829,26.0,221.14,221.07,5.35605589]
[1758562258041,0.7,221.15,221.07,5.35605589]
[1758562258928,26.0,221.15,221.07,5.35605589]
[1758562259240,4.68605589,221.16,221.06,4.52359607]
[1758562259241,5.38605589,221.14,221.06,0.67]
[1758562259447,0.7,221.14,221.07,4.68605589]
[1758562261046,30.68605589,221.16,221.07,4.68605589]
[1758562261247,0.7,221.13,221.04,49.57530966]
[1758562261447,0.7,221.15,221.05,5.35605589]
[1758562261753,0.7,221.14,221.05,5.35605589]
[1758562261947,0.7,221.13,221.02,0.67]
[1758562262152,164.88605589,221.12,221.02,0.67]
[1758562262360,0.7,221.11,221.02,5.19447479]
[1758562262655,0.7,221.11,221.03,5.35605589]
[1758562263359,0.7,221.11,221.03,9.88012682]
[1758562264243,0.7,221.1,221.03,4.68605589]
[1758562264555,0.7,221.09,221.02,18.02722315]
[1758562264773,0.7,221.09,221.03,5.35605589]
[1758562265356,0.7,221.09,221.03,9.8802249]
[1758562265652,164.88605589,221.12,221.03,9.8802249]
[1758562265653,134.2,221.12,221.07,4.68605589]
[1758562265861,26.0,221.13,221.08,0.67]
[1758562266168,26.7,221.13,221.08,0.67]
[1758562266457,26.0,221.13,221.07,4.68605589]
[1758562266632,0.7,221.16,221.08,0.67]
[1758562266833,26.0,221.14,221.08,0.67]
[1758562267357,26.0,221.13,221.08,0.67]
[1758562267535,26.0,221.13,221.05,0.67]
[1758562267735,30.68605589,221.11,221.02,4.68605589]
[1758562267943,0.7,221.1,221.02,4.68605589]
[1758562268146,5.38605589,221.09,221.01,0.67]
[1758562268835,5.38605589,221.09,221.01,5.19467379]
[1758562269035,26.0,221.09,221.02,5.35605589]
[1758562269236,26.0,221.1,221.04,4.68605589]
[1758562269541,26.0,221.1,221.04,9.20994884]
[1758562269741,26.0,221.1,221.04,9.87994884]
[1758562269948,26.0,221.1,221.04,0.67]
[1758562270150,26.0,221.1,221.04,5.35605589]
[1758562274765,0.7,221.11,221.04,9.21005318]
[1758562274972,26.0,221.1,221.05,0.69]
[1758562275174,0.71,221.15,221.08,4.68605589]
[1758562275478,0.71,221.17,221.1,4.68605589]
[1758562275683,0.71,221.17,221.11,0.69]
[1758562275973,26.0,221.15,221.11,0.69]
[1758562276542,39.79678516,221.2,221.1,4.68605589]
[1758562276543,0.71,221.19,221.12,5.37605589]
[1758562276754,26.0,221.17,221.12,5.37605589]
[1758562277076,26.0,221.17,221.1,4.52277572]
[1758562277077,4.68605589,221.23,221.14,4.68605589]
[1758562277237,0.71,221.2,221.14,4.68605589]
[1758562277440,26.71,221.2,221.14,4.68605589]
[1758562277780,0.71,221.2,221.14,4.68605589]
[1758562277934,26.71,221.2,221.14,4.68605589]
[1758562278134,26.71,221.2,221.14,9.20798978]
[1758562278364,26.71,221.2,221.14,5.37605589]
[1758562278572,26.0,221.2,221.14,9.89803991]
[1758562278885,0.71,221.22,221.15,0.69]
[1758562279171,26.71,221.22,221.15,0.69]
[1758562279351,3.36657456,221.21,221.15,0.69]
[1758562279946,26.71,221.22,221.15,0.69]
[1758562280367,3.36935539,221.21,221.15,0.69]
[1758562280560,3.36935539,221.21,221.15,5.21175063]
[1758562280740,0.71,221.22,221.15,0.69]
[1758562281445,0.71,221.22,221.15,5.21180932]
[1758562283155,0.71,221.22,221.16,0.69]
[1758562283661,26.71,221.22,221.16,5.37605589]
[1758562283868,26.71,221.22,221.16,0.69]
[1758562284041,26.71,221.22,221.16,5.37605589]
[1758562284551,26.71,221.22,221.16,9.89764804]
[1758562284952,26.71,221.22,221.16,5.37605589]
[1758562285163,26.71,221.22,221.16,0.69]
[1758562285345,24.71,221.22,221.16,0.69]
[1758562286264,24.71,221.22,221.16,5.21158063]
[1758562286465,24.71,221.22,221.16,9.20763652]
[1758562286777,24.71,221.22,221.17,0.69]
[1758562288357,134.2,221.24,221.18,3.52225999]
[1758562288676,134.2,221.24,221.19,0.71]
[1758562288844,134.2,221.24,221.2,0.71]
[1758562289051,134.2,221.24,221.21,0.71]
[1758562289444,134.2,221.24,221.18,2.81225999]
[1758562289774,134.2,221.24,221.2,2.81225999]
[1758562289945,134.2,221.24,221.21,0.71]
[1758562290147,134.2,221.24,221.19,2.81225999]
[1758562290346,134.2,221.24,221.2,0.71]
[1758562290548,134.2,221.24,221.21,0.71]
[1758562290767,134.2,221.24,221.2,2.81225999]
[1758562290967,134.2,221.24,221.21,0.71]
[1758562291344,28.81225999,221.22,221.08,4.52306887]
[1758562291650,26.0,221.15,221.07,3.52225999]
[1758562291974,0.72,221.14,221.07,3.52225999]
[1758562292473,0.72,221.14,221.07,14.42431455]
[1758562292773,0.72,221.14,221.02,11.31086552]
[1758562292774,2.81225999,221.12,221.02,2.81225999]
[1758562293069,26.72,221.11,221.03,0.71]
[1758562293778,29.53225999,221.11,221.03,3.52225999]
[1758562294271,26.0,221.11,221.04,3.52225999]
[1758562294572,26.72,221.11,221.04,7.58767146]
[1758562295570,32.87767146,221.13,221.05,7.58767146]
[1758562295777,26.0,221.1,221.05,7.58767146]
[1758562296272,26.0,221.1,221.06,7.58767146]
[1758562296454,26.0,221.11,221.06,7.58767146]
[1758562297256,6.87767146,221.19,221.1,6.87767146]
[1758562297455,6.87767146,221.19,221.12,6.87767146]